bitfinex-derivatives/quotes_ETHF0:USTF0_20251119
["timestamp","ask_amount","ask_price","bid_price","bid_amount"]
[1763563206954,0.00492433,3046.7,3045.4,4.27246]
[1763563207249,0.00492433,3046.7,3046.1,3.2078]
[1763563207436,0.00492433,3046.7,3045.8,1.06451]
[1763563207740,3.2078,3046.6,3045.5,3.2078]
[1763563208043,1.63409,3045.9,3045.5,3.2078]
[1763563208340,3.2078,3045.8,3045.0,0.00301541]
[1763563208537,3.7774,3045.9,3045.0,0.00301541]
[1763563208740,3.2078,3045.5,3045.0,0.00301541]
[1763563209135,1.06453,3045.8,3045.0,3.21081541]
[1763563209336,3.2078,3045.6,3045.0,0.00301541]
[1763563209544,3.2078,3045.2,3045.0,0.00301541]
[1763563209945,0.5696,3045.9,3045.0,3.21081541]
[1763563210244,0.5696,3045.9,3045.0,0.00301541]
[1763563210245,3.2078,3045.7,3045.0,0.00301541]
[1763563211438,0.5696,3045.9,3045.0,3.21081541]
[1763563211749,3.2078,3046.1,3045.0,3.21081541]
[1763563211945,3.2078,3045.7,3045.0,0.00301541]
[1763563212337,0.5696,3045.0,3043.9,4.95091423]
[1763563212541,3.2078,3044.7,3043.9,3.2078]
[1763563213037,3.2078,3044.2,3043.4,4.95091423]
[1763563213238,3.2078,3043.7,3043.2,1.74311423]
[1763563213434,3.2078,3043.3,3043.2,1.74553466]
[1763563213741,3.21179274,3043.7,3043.2,0.00242043]
[1763563214249,0.00399274,3043.7,3043.3,3.2078]
[1763563214438,3.2078,3043.6,3043.2,0.00242043]
[1763563215036,0.00399274,3043.7,3043.5,3.2078]
[1763563215232,0.00399274,3043.7,3043.2,0.00242043]
[1763563215436,0.00399274,3043.7,3043.4,3.2078]
[1763563215645,3.2078,3044.4,3043.6,3.2078]
[1763563215836,3.2078,3044.4,3043.8,3.2078]
[1763563216142,3.7774,3045.0,3044.1,3.2078]
[1763563216340,0.5696,3046.0,3044.9,3.2078]
[1763563216548,0.00232509,3046.0,3045.6,3.2078]
[1763563216844,0.00232509,3046.0,3045.6,0.00235206]
[1763563217040,0.00232509,3046.0,3045.6,3.21015206]
[1763563217251,0.5696,3045.9,3045.6,0.00235206]
[1763563217542,0.00232509,3046.0,3045.6,0.00235206]
[1763563217747,0.00232509,3046.0,3045.6,3.21015206]
[1763563217948,0.00232509,3046.0,3045.6,0.00235206]
[1763563218645,0.00232509,3046.0,3045.9,3.2078]
[1763563219152,0.00492433,3046.1,3045.9,9.2078]
[1763563219440,1.17986357,3048.3,3045.9,9.2078]
[1763563219441,3.7774,3048.1,3045.9,9.527]
[1763563219645,3.7774,3048.1,3047.4,3.2078]
[1763563220040,3.2078,3047.7,3046.8,3.2078]
[1763563220246,3.21181309,3047.7,3046.8,3.2078]
[1763563220544,0.00490508,3047.6,3046.9,0.00492433]
[1763563221136,0.5696,3047.0,3046.9,0.00492433]
[1763563221337,3.2078,3047.3,3046.9,0.00492433]
[1763563221643,0.5696,3047.0,3046.3,3.2078]
[1763563221840,3.2078,3046.4,3045.6,0.00235206]
[1763563222044,3.2078,3046.5,3045.6,0.00235206]
[1763563222240,3.2078,3046.5,3045.6,3.21015206]
[1763563222739,3.2078,3046.5,3045.7,3.21272433]
[1763563223150,1.06421,3046.7,3045.7,3.21272433]
[1763563223442,1.06421,3046.7,3045.7,0.00492433]
[1763563223646,3.2078,3047.4,3046.5,3.2078]
[1763563223844,3.2078,3047.4,3046.0,3.2078]
[1763563224048,3.2078,3047.4,3046.5,3.2078]
[1763563224250,3.2078,3047.4,3046.7,3.2078]
[1763563224439,3.2078,3047.4,3046.3,3.2078]
[1763563224640,3.724,3047.0,3045.9,3.2078]
[1763563225246,3.724,3047.0,3046.3,3.2078]
[1763563225746,3.2078,3047.4,3046.8,3.2078]
[1763563225945,0.00490508,3047.6,3046.9,3.2078]
[1763563226143,3.2078,3047.4,3046.4,3.2078]
[1763563226344,3.2078,3047.4,3046.8,3.2078]
[1763563227245,3.7774,3048.1,3047.3,3.2078]
[1763563227546,1.06356,3048.6,3047.5,3.2078]
[1763563227547,3.2078,3048.3,3047.5,3.2078]
[1763563227953,4.27164,3047.8,3046.6,1.75502954]
[1763563228151,3.2078,3047.3,3046.2,1.75502954]
[1763563228346,0.00492433,3047.1,3046.4,3.21272433]
[1763563228747,0.5162,3047.0,3046.4,3.21272433]
[1763563229044,0.5162,3047.0,3046.4,0.00492433]
[1763563229045,3.2078,3046.7,3046.4,0.00492433]
[1763563229257,3.2078,3046.7,3045.6,1.7573816]
[1763563229258,3.2078,3046.7,3045.6,0.00235206]
[1763563229454,3.2078,3046.2,3045.6,0.00235206]
[1763563229649,3.73999,3046.2,3045.6,0.00235206]
[1763563230045,3.2078,3046.7,3046.0,3.2078]
[1763563230242,3.2078,3046.7,3046.0,0.00492433]
[1763563230850,3.724,3047.0,3046.2,3.2078]
[1763563231046,3.724,3047.0,3046.0,0.00492433]
[1763563231354,3.2078,3046.8,3046.0,0.00492433]
[1763563231555,3.2078,3046.2,3046.0,0.00492433]
[1763563232452,0.483,3046.0,3045.6,0.00235206]
[1763563232956,0.483,3045.0,3044.1,3.2078]
[1763563233461,0.00492433,3044.9,3044.7,3.2078]
[1763563233749,0.00492433,3044.9,3044.2,1.75995387]
[1763563233954,0.00873008,3044.9,3044.8,3.2078]
[1763563234656,0.00873008,3044.9,3044.7,0.00398944]
[1763563235254,1.06494,3044.6,3044.2,0.00492433]
[1763563235457,1.06494,3044.6,3043.4,2.90398053]
[1763563235458,3.2078,3044.4,3043.3,3.2078]
[1763563235648,1.06506,3044.3,3043.3,3.2078]
[1763563235854,3.6908,3044.0,3042.9,4.96282954]
[1763563236160,0.483,3044.0,3043.4,3.2078]
[1763563236358,3.2078,3044.4,3043.9,3.2078]
[1763563236553,0.00492433,3044.5,3043.9,3.2078]
[1763563236754,3.2078,3044.4,3043.9,3.2078]
[1763563237259,3.2078,3044.4,3043.8,0.00492433]
[1763563237762,3.2078,3044.0,3043.8,0.00492433]
[1763563237960,3.2078,3044.4,3043.8,0.00492433]
[1763563238155,3.2078,3044.4,3044.0,3.2078]
[1763563238348,3.2078,3044.4,3043.8,0.00492433]
[1763563238851,1.01563,3043.7,3043.4,0.00408934]
[1763563239057,1.01563,3043.7,3042.8,3.2078]
[1763563239058,3.2078,3043.5,3042.8,3.2078]
[1763563239360,0.483,3043.0,3042.4,3.2078]
[1763563239556,0.483,3043.0,3041.8,3.2078]
[1763563239761,0.483,3043.0,3042.2,3.2078]
[1763563239966,0.00492433,3042.9,3042.3,0.00492433]
[1763563240154,3.2078,3042.6,3042.3,0.00788719]
[1763563240351,0.00401137,3042.6,3042.3,0.00788719]
[1763563240552,0.00401137,3042.6,3042.4,3.2078]
[1763563240752,0.00401137,3042.6,3042.3,0.00788719]
[1763563242965,1.06965137,3042.6,3042.3,0.00788719]
[1763563243260,0.00401137,3042.6,3042.3,0.00788719]
[1763563244559,0.00401137,3042.6,3041.6,3.2078]
[1763563245355,0.00401137,3042.6,3042.4,3.2078]
[1763563245555,3.21181137,3042.6,3042.4,0.00249374]
[1763563247666,3.74463137,3042.6,3042.2,0.00328288]
[1763563248161,1.06578,3042.2,3041.4,3.2078]
[1763563248358,3.2078,3041.9,3041.4,3.2078]
[1763563248554,3.2078,3041.9,3041.4,0.00406996]
[1763563248868,3.2078,3041.5,3040.9,3.2078]
[1763563249364,0.53305,3041.3,3040.5,3.2078]
[1763563249565,3.2078,3041.1,3040.5,3.2078]
[1763563249769,3.2078,3041.1,3040.5,3.21159727]
[1763563249964,0.483,3041.0,3040.5,3.21159727]
[1763563250373,3.2078,3040.7,3040.5,0.00379727]
[1763563250662,3.2078,3040.7,3040.0,3.2078]
[1763563251061,3.21273307,3041.2,3040.4,3.2078]
[1763563251266,3.21273307,3041.2,3040.8,3.2078]
[1763563251267,0.00493307,3041.2,3040.8,3.2078]
[1763563251564,3.2078,3042.1,3040.8,3.21064292]
[1763563251764,0.00401137,3042.6,3041.9,3.2078]
[1763563252165,0.00401137,3042.6,3041.5,3.2078]
[1763563252465,0.483,3043.0,3042.1,3.2078]
[1763563252763,0.00493307,3042.9,3042.3,3.2078]
[1763563252972,3.2078,3042.7,3042.2,0.00493307]
[1763563253467,0.00230979,3042.7,3042.4,3.2078]
[1763563253767,3.21010979,3042.7,3042.2,0.00493307]
[1763563254758,3.2078,3042.3,3041.1,3.2078]
[1763563255267,3.2078,3042.3,3041.5,3.2078]
[1763563255574,3.2078,3042.3,3041.1,3.2078]
[1763563255771,3.2078,3042.3,3041.5,3.2078]
[1763563256973,0.00230979,3042.7,3042.0,3.2078]
[1763563257269,0.00230979,3042.7,3042.4,3.2078]
[1763563257471,0.00230979,3042.7,3042.0,3.2078]
[1763563257472,3.2078,3042.7,3042.0,3.2078]
[1763563257666,3.2078,3042.3,3041.6,3.2078]
[1763563258467,3.21111521,3042.3,3041.6,3.2078]
[1763563258968,3.21111521,3042.3,3041.7,3.387]
[1763563259176,3.21111521,3042.3,3041.6,3.2078]
[1763563260273,3.2078,3041.7,3040.8,0.00284292]
[1763563260467,0.483,3041.0,3040.8,0.00284292]
[1763563260670,0.483,3041.0,3040.7,3.2078]
[1763563260671,4.27405,3040.9,3040.3,3.2078]
[1763563261059,0.483,3041.0,3040.3,3.2078]
[1763563261462,0.00493307,3041.2,3040.8,3.2078]
[1763563261663,0.00493307,3041.2,3040.8,0.00312551]
[1763563261664,3.2078,3040.9,3040.8,0.00312551]
[1763563262068,1.06628,3040.8,3039.6,3.2078]
[1763563262273,3.2078,3040.5,3039.6,3.2078]
[1763563263172,3.2078,3040.5,3039.6,3.21150884]
[1763563263672,4.2742,3040.5,3039.6,3.21150884]
[1763563263879,0.4579,3040.0,3039.6,3.21150884]
[1763563264068,0.46081713,3040.0,3039.6,3.21150884]
[1763563264375,0.00493307,3041.2,3040.3,1.06644]
[1763563264570,0.483,3042.0,3041.1,3.2078]
[1763563264769,0.483,3042.0,3041.5,3.2078]
[1763563265277,0.48682435,3042.0,3041.5,3.2078]
[1763563265473,0.48682435,3042.0,3040.0,2.90398053]
[1763563265474,1.55268435,3042.0,3041.4,0.00493307]
[1763563265673,1.5241,3041.0,3039.7,3.2078]
[1763563265875,0.4579,3040.0,3039.8,3.2078]
[1763563266370,3.6657,3041.0,3039.8,3.2078]
[1763563266570,0.05723543,3042.3,3038.8,4.06452887]
[1763563266571,3.69462435,3042.0,3040.8,3.2078]
[1763563266772,0.48682435,3042.0,3041.9,3.2078]
[1763563266983,0.48682435,3042.0,3041.9,3.21104083]
[1763563267178,0.48682435,3042.0,3041.9,0.00324083]
[1763563267566,0.4579,3041.0,3040.7,3.2078]
[1763563268374,3.2078,3041.8,3040.7,3.2078]
[1763563268678,3.2078,3041.8,3040.9,3.2078]
[1763563268880,0.4579,3041.0,3040.9,3.2078]
[1763563269271,3.2078,3041.9,3040.9,3.2078]
[1763563269472,0.48682435,3042.0,3040.9,3.2078]
[1763563269473,0.48682435,3042.0,3041.4,3.2078]
[1763563270077,0.48682435,3042.0,3041.8,3.2078]
[1763563270472,0.00382435,3042.0,3041.8,3.2078]
[1763563270672,0.4579,3044.0,3041.9,14.45781586]
[1763563270880,0.4579,3045.0,3043.7,3.2078]
[1763563271074,0.4579,3045.0,3044.6,3.2078]
[1763563271680,0.4579,3046.0,3044.6,3.21187181]
[1763563271881,0.4579,3046.0,3045.6,3.2078]
[1763563272572,0.4579,3047.0,3045.6,3.2078]
[1763563272779,0.00492481,3046.6,3046.5,3.2078]
[1763563272986,0.00492481,3046.6,3046.2,0.00492481]
[1763563273880,0.4579,3044.8,3044.1,6.11178053]
[1763563274091,0.4579,3044.8,3043.4,3.2078]
[1763563274092,3.6657,3044.8,3043.4,3.2078]
[1763563274278,0.4579,3044.8,3044.4,3.2078]
[1763563274486,3.6657,3044.8,3044.0,3.2078]
[1763563274674,3.2078,3044.8,3044.4,3.2078]
[1763563274879,0.00492481,3044.9,3044.4,3.2078]
[1763563275084,0.4579,3044.8,3044.4,0.00257137]
[1763563275379,0.00855134,3044.9,3044.4,0.00257137]
[1763563275682,0.00855134,3044.9,3044.8,3.2078]
[1763563276784,3.2078,3045.4,3044.8,3.2078]
[1763563276978,3.2078,3045.9,3045.3,3.2078]
[1763563277289,3.2078,3046.0,3045.2,3.2078]
[1763563277584,3.2078,3046.4,3045.6,3.2078]
[1763563277779,3.2078,3047.2,3046.3,3.2078]
[1763563277977,3.2078,3047.2,3046.8,3.2078]
[1763563278183,0.00492481,3047.1,3046.4,3.21272481]
[1763563278483,3.2078,3046.8,3046.4,0.00492481]
[1763563278879,0.00350028,3046.8,3046.4,3.216819]
[1763563279382,3.21130028,3046.8,3046.4,0.009019]
[1763563280079,1.06428,3046.5,3046.4,0.009019]
[1763563280283,2.61481586,3046.6,3045.1,3.2078]
[1763563280477,2.61481586,3046.6,3044.3,11.834]
[1763563280478,0.00350028,3046.8,3046.0,3.2078]
[1763563280678,3.2078,3048.1,3046.4,3.2078]
[1763563280886,3.2078,3048.1,3047.1,3.2078]
[1763563281275,3.2078,3048.1,3046.1,2.61481586]
[1763563281276,3.2078,3047.7,3047.2,0.00492481]
[1763563281679,0.00412477,3047.7,3047.4,3.2078]
[1763563282079,2.477e-05,3047.7,3047.4,3.2078]
[1763563282275,2.477e-05,3047.7,3047.5,2.002]
[1763563282683,2.477e-05,3047.7,3047.4,3.2078]
[1763563282878,2.477e-05,3047.7,3047.2,0.00908975]
[1763563283391,2.477e-05,3047.7,3047.4,3.2078]
[1763563283684,2.477e-05,3047.7,3047.2,0.00908975]
[1763563283891,2.477e-05,3047.7,3047.4,3.2078]
[1763563284087,2.477e-05,3047.7,3047.2,0.00908975]
[1763563284288,3.20782477,3047.7,3047.2,0.00908975]
[1763563284493,2.477e-05,3047.7,3047.3,3.2078]
[1763563285389,2.477e-05,3047.7,3047.3,6.5898]
[1763563285590,2.477e-05,3047.7,3047.3,3.2078]
[1763563285887,3.2078,3049.0,3047.3,11.82261586]
[1763563286091,0.4579,3050.3,3048.8,3.2078]
[1763563286092,3.2078,3049.5,3048.8,3.2078]
[1763563286282,4.27086,3050.0,3048.8,3.2078]
[1763563286485,0.4579,3050.3,3049.7,3.2078]
[1763563286790,0.4579,3050.3,3049.3,4.7248]
[1763563287094,3.2078,3049.7,3049.5,0.00492481]
[1763563287591,1.0632,3049.6,3048.7,3.2078]
[1763563287790,1.0632,3049.6,3048.8,3.2078]
[1763563287992,3.2078,3049.1,3048.4,3.2078]
[1763563288594,1.0632,3049.6,3048.7,3.2078]
[1763563288595,3.2078,3049.5,3048.7,3.2078]
[1763563289088,3.2078,3049.5,3048.3,0.00492481]
[1763563289089,3.2078,3049.4,3048.3,3.21272481]
[1763563289293,3.2078,3048.9,3048.3,3.21272481]
[1763563289586,3.2078,3048.4,3048.3,0.00492481]
[1763563289990,3.692,3049.2,3048.3,0.00492481]
[1763563290187,3.692,3049.2,3048.6,3.2078]
[1763563290383,3.692,3049.2,3048.7,3.2078]
[1763563290784,3.692,3049.2,3048.3,4.71072481]
[1763563291487,3.692,3049.2,3048.3,6.53672481]
[1763563291692,3.692,3049.2,3048.3,3.21272481]
[1763563291883,3.2078,3048.8,3048.3,3.21272481]
[1763563292284,1.06354,3048.7,3048.3,3.21272481]
[1763563292691,3.2078,3048.4,3048.2,0.00262408]
[1763563292895,3.2078,3048.4,3046.6,12.35311]
[1763563292896,0.53194,3047.7,3046.5,3.2078]
[1763563293089,4.75636,3048.0,3046.5,3.2078]
[1763563293388,3.2078,3047.5,3046.7,3.2078]
[1763563293592,3.2078,3047.9,3046.5,3.2078]
[1763563293780,3.21272481,3047.5,3046.5,3.21204578]
[1763563293986,1.06396,3047.4,3046.5,3.21204578]
[1763563294493,3.6926,3047.0,3046.5,0.00424578]
[1763563294687,3.2078,3046.8,3046.5,0.00424578]
[1763563294893,3.2078,3047.3,3046.6,3.2078]
[1763563295087,3.2078,3047.3,3046.5,0.00424578]
[1763563295399,3.2078,3046.8,3046.5,0.00424578]
[1763563295792,3.2078,3047.3,3046.7,3.2078]
[1763563295991,3.2078,3047.3,3046.5,0.00424578]
[1763563296388,3.2078,3046.9,3046.5,0.00424578]
[1763563296594,1.06424,3046.6,3045.9,3.2078]
[1763563296897,3.2078,3046.5,3045.9,3.2078]
[1763563297395,0.4848,3046.0,3045.4,3.2078]
[1763563297607,4.27244,3045.5,3044.6,3.2078]
[1763563297804,3.2078,3045.0,3044.6,3.2078]
[1763563297992,3.21272481,3045.4,3044.6,3.2078]
[1763563298499,3.2078,3045.0,3044.6,3.2078]
[1763563298892,0.4848,3044.8,3044.6,3.2078]
[1763563299298,3.2078,3045.0,3044.6,3.2078]
[1763563300300,3.2078,3045.0,3044.2,3.21142853]
[1763563300500,3.2078,3044.3,3043.3,3.2078]
[1763563300697,3.2078,3043.8,3043.3,3.2078]
[1763563300893,0.4848,3043.7,3042.9,3.2078]
[1763563301298,3.2078,3043.8,3043.3,3.2078]
[1763563301504,0.00492481,3043.9,3043.7,3.2078]
[1763563301799,0.4848,3044.8,3043.7,9.2078]
[1763563301800,3.2078,3044.6,3043.7,9.2078]
[1763563302000,3.2078,3044.6,3044.1,3.2078]
[1763563302300,4.2724,3045.6,3044.5,3.2078]
[1763563302499,3.2078,3046.1,3045.1,3.2078]
[1763563302702,3.2078,3045.3,3044.7,3.2078]
[1763563302911,3.21272481,3045.3,3044.7,0.00492481]
[1763563303497,0.00492481,3045.3,3044.7,3.21272481]
[1763563303700,0.00492481,3045.3,3044.7,0.00492481]
[1763563304208,3.2078,3045.0,3044.7,0.00492481]
[1763563304700,0.4848,3044.8,3043.9,3.2078]
[1763563304905,3.2078,3044.5,3043.9,3.2078]
[1763563305103,0.4848,3044.8,3043.9,3.2078]
[1763563305602,3.21272481,3045.3,3044.4,3.2078]
[1763563305901,3.2078,3045.8,3045.2,3.2078]
[1763563306204,3.2078,3046.4,3045.7,3.2078]
[1763563306900,3.21653702,3046.4,3045.7,3.21519504]
[1763563307203,3.2078,3046.3,3045.7,3.21519504]
[1763563307400,3.2078,3046.3,3045.7,0.00739504]
[1763563307797,3.6926,3045.9,3045.1,3.2078]
[1763563307998,3.2078,3045.8,3045.1,3.2078]
[1763563308206,4.27218,3046.2,3044.8,3.2078]
[1763563308405,4.27218,3046.2,3044.7,1.395]
[1763563308406,3.2078,3045.7,3044.7,45.4028]
[1763563308603,3.2078,3046.1,3045.0,3.2078]
[1763563308802,3.2078,3046.1,3045.4,3.2078]
[1763563309011,0.00873702,3046.4,3045.8,3.2078]
[1763563309202,0.00873702,3046.4,3045.7,3.2078]
[1763563309408,0.00873702,3046.4,3045.6,3.2078]
[1763563310307,0.00873702,3046.4,3046.0,3.2078]
[1763563310511,0.4848,3046.0,3045.2,3.2078]
[1763563310899,3.2078,3046.1,3045.2,3.2078]
[1763563312210,0.4848,3046.0,3045.2,3.2078]
[1763563312411,3.2078,3046.1,3045.2,3.2078]
[1763563312806,3.2078,3046.0,3045.2,3.2078]
[1763563313217,3.6926,3046.0,3045.2,3.2078]
[1763563313607,3.2078,3046.0,3045.2,3.2078]
[1763563314313,3.6926,3046.0,3045.2,3.2078]
[1763563314529,3.2078,3046.0,3045.2,3.2078]
[1763563314714,3.6926,3046.0,3045.2,3.2078]
[1763563314916,0.4848,3046.0,3045.2,3.2078]
[1763563315116,3.21653702,3046.4,3045.6,3.2078]
[1763563315310,3.2078,3046.0,3045.2,3.2078]
[1763563315518,3.6926,3046.0,3045.2,3.2078]
[1763563316222,3.21653702,3046.4,3045.7,3.2078]
[1763563316612,0.00873702,3046.4,3046.1,3.2078]
[1763563317014,0.00873702,3046.4,3045.7,3.2078]
[1763563317214,0.00873702,3046.4,3046.1,3.2078]
[1763563317723,3.2078,3046.3,3045.7,3.2078]
[1763563318622,0.00873702,3046.4,3045.6,3.379]
[1763563318623,0.00873702,3046.4,3046.2,3.2078]
[1763563319221,0.00873702,3046.4,3045.8,3.2078]
[1763563319426,0.00873702,3046.4,3046.2,3.2078]
[1763563319627,0.00873702,3046.4,3045.8,3.2078]
[1763563320031,0.00873702,3046.4,3045.9,3.2078]
[1763563320332,3.2078,3047.0,3046.3,3.2078]
[1763563321031,3.2078,3047.0,3046.4,3.276]
[1763563321220,3.2078,3047.5,3046.8,3.2078]
[1763563321425,4.736e-05,3047.0,3046.9,0.53699481]
[1763563321719,3.2078,3048.3,3047.4,0.1125]
[1763563321918,1.12273258,3050.0,3048.2,4.27147]
[1763563321919,3.2078,3050.0,3048.2,4.27147]
[1763563322126,0.4848,3050.1,3049.4,3.2078]
[1763563322330,0.412,3049.2,3048.6,3.378]
[1763563322632,0.42087111,3049.2,3048.7,3.2078]
[1763563322838,0.00887111,3049.2,3049.1,3.2078]
[1763563323532,0.4848,3050.1,3049.1,3.2078]
[1763563323724,3.2078,3050.0,3049.5,3.2078]
[1763563323922,0.4848,3050.1,3049.5,3.2078]
[1763563324117,1.0631,3049.9,3049.5,0.9308]
[1763563324323,3.2078,3049.6,3048.9,3.2078]
[1763563324524,3.21650226,3049.6,3048.6,0.00822936]
[1763563324723,3.21650226,3049.6,3049.1,3.2078]
[1763563324920,0.00870226,3049.6,3049.1,3.2078]
[1763563325132,0.00870226,3049.6,3048.9,3.2078]
[1763563325432,0.4848,3050.1,3049.5,3.2078]
[1763563325631,0.4848,3050.1,3049.9,3.2078]
[1763563325830,4.75534,3051.0,3049.9,3.2078]
[1763563326032,4.75534,3051.0,3050.3,3.2078]
[1763563326243,3.70145303,3051.0,3050.3,0.00492481]
[1763563326437,0.00885303,3051.0,3050.7,3.2078]
[1763563327840,0.42085303,3051.0,3050.7,3.2078]
[1763563328235,0.42085303,3051.0,3050.6,3.2078]
[1763563328934,0.4848,3051.9,3050.6,3.2078]
[1763563329131,0.4848,3051.9,3050.9,3.2078]
[1763563329335,3.2078,3051.6,3050.8,3.2078]
[1763563329534,0.412,3051.0,3050.5,2.829]
[1763563329734,0.412,3051.0,3050.8,3.2078]
[1763563329937,0.4155028,3051.0,3050.8,3.21115542]
[1763563330234,0.0035028,3051.0,3050.8,3.21115542]
[1763563331240,0.00491665,3051.2,3050.8,3.21115542]
[1763563331435,0.00491665,3051.2,3050.3,0.00492481]
[1763563331436,0.412,3051.0,3050.3,3.21272481]
[1763563331735,0.412,3050.1,3049.9,3.2078]
[1763563332140,6.412,3050.1,3049.3,3.2078]
[1763563332439,0.412,3049.2,3047.5,3.2078]
[1763563332639,3.2078,3048.6,3047.9,3.2078]
[1763563332941,0.412,3049.2,3048.3,3.2078]
[1763563333136,0.5317,3049.0,3048.2,3.2078]
[1763563333336,3.2078,3048.6,3048.0,0.00491665]
[1763563333638,9.2078,3048.6,3048.0,0.00491665]
[1763563333839,0.412,3048.0,3047.5,0.00355175]
[1763563334039,0.412,3048.0,3045.6,3.1826471]
[1763563334040,3.2078,3047.8,3047.1,3.2078]
[1763563334235,0.412,3048.0,3047.0,3.2078]
[1763563334645,0.412,3048.0,3047.4,3.2078]
[1763563334846,0.41691665,3048.0,3047.4,3.21271665]
[1763563335144,0.4193493,3048.0,3047.4,0.00891847]
[1763563335340,0.4193493,3048.0,3047.4,3.21671847]
[1763563335544,3.2078,3048.7,3047.8,3.2078]
[1763563335741,0.412,3049.2,3048.6,3.2078]
[1763563336042,3.2078,3050.7,3049.1,3.2078]
[1763563336236,3.2078,3051.4,3050.6,3.2078]
[1763563336437,0.53127,3051.5,3050.6,3.2078]
[1763563336637,0.41612024,3051.0,3050.6,0.00371]
[1763563336838,3.62392024,3051.0,3050.6,0.00371]
[1763563337242,3.62392024,3051.0,3050.5,0.00491665]
[1763563337446,4.68666024,3051.0,3050.5,0.00491665]
[1763563337845,0.41612024,3051.0,3050.9,3.2078]
[1763563338339,0.41612024,3051.0,3050.9,0.00346284]
[1763563338760,0.00412024,3051.0,3050.9,3.21126284]
[1763563339136,1.0624,3051.9,3050.9,3.21126284]
[1763563339335,1.0624,3051.9,3051.4,3.2078]
[1763563340244,3.2078,3051.6,3050.9,0.00346284]
[1763563340640,0.53127,3051.5,3050.8,2.53446755]
[1763563340836,3.2078,3051.2,3050.5,0.00491665]
[1763563341341,0.412,3051.0,3050.5,0.00491665]
[1763563341536,3.2078,3051.2,3050.5,0.00491665]
[1763563341743,0.00395188,3051.9,3050.9,3.2078]
[1763563341744,3.2078,3051.6,3050.9,3.2078]
[1763563341945,0.00395188,3051.9,3051.5,3.2078]
[1763563342243,0.00395188,3051.9,3051.1,3.2078]
[1763563342444,0.00395188,3051.9,3051.5,3.2078]
[1763563342752,0.00395188,3051.9,3051.1,3.2078]
[1763563344848,1.06635188,3051.9,3051.1,3.2078]
[1763563345241,0.00395188,3051.9,3051.1,3.2078]
[1763563345438,0.00395188,3051.9,3051.5,3.2078]
[1763563348459,0.00395188,3051.9,3051.0,3.2078]
[1763563348641,3.2078,3051.7,3051.0,3.2078]
[1763563349356,0.00395188,3051.9,3050.6,3.2078]
[1763563349357,3.2078,3051.3,3050.6,3.2078]
[1763563349751,0.00395188,3051.9,3051.2,3.2078]
[1763563350251,0.479,3051.0,3050.5,3.21611027]
[1763563350954,1.06294,3050.4,3049.7,3.2078]
[1763563351148,3.2078,3050.7,3049.7,3.2078]
[1763563351343,0.479,3050.0,3049.7,3.2078]
[1763563351853,3.2078,3050.3,3049.7,3.2078]
[1763563352057,0.00491665,3050.2,3049.7,0.00350205]
[1763563352257,0.00491665,3050.2,3050.1,3.2078]
[1763563353449,0.465,3050.0,3049.7,0.00350205]
[1763563353759,0.465,3050.0,3048.0,6.96955328]
[1763563353760,3.6728,3050.0,3049.0,3.2078]
[1763563353955,1.5284,3049.0,3048.4,3.2078]
[1763563354350,1.5284,3049.0,3048.8,3.2078]
[1763563354551,3.2078,3049.6,3048.8,3.21029863]
[1763563354752,0.00291137,3049.0,3048.9,0.00491665]
[1763563354954,0.00291137,3049.0,3048.9,3.21271665]
[1763563357851,0.465,3050.0,3048.9,3.21271665]
[1763563357852,3.6728,3050.0,3048.9,3.21271665]
[1763563358054,3.6728,3050.0,3049.5,3.2078]
[1763563358462,4.73586,3050.0,3049.1,3.2078]
[1763563358656,3.6728,3050.0,3049.5,3.2078]
[1763563358849,3.67513151,3050.0,3049.5,3.2078]
[1763563359756,0.46733151,3050.0,3049.5,3.2078]
[1763563361662,0.00233151,3050.0,3049.5,3.2078]
[1763563361858,0.00233151,3050.0,3049.9,3.2078]
[1763563363558,0.00233151,3050.0,3049.0,3.2078]
[1763563363559,6.00233151,3050.0,3049.0,3.2078]
[1763563363765,0.465,3049.2,3049.0,3.2078]
[1763563363954,3.2078,3049.7,3049.0,3.2078]
[1763563364460,1.06311,3049.9,3049.0,3.2078]
[1763563364868,1.06311,3049.9,3049.4,3.2078]
[1763563365359,0.00233151,3050.0,3049.4,3.2078]
[1763563365567,0.00233151,3050.0,3049.8,3.2078]
[1763563365766,3.2078,3051.6,3049.9,1.06307]
[1763563366063,3.2078,3051.6,3050.9,3.2078]
[1763563366868,3.21654351,3051.6,3050.9,3.21271665]
[1763563367570,0.465,3051.0,3050.9,0.00491665]
[1763563367758,1.06254,3051.5,3050.9,3.21271665]
[1763563368066,0.465,3051.0,3050.9,3.21271665]
[1763563368368,0.465,3051.0,3050.9,0.00491665]
[1763563369163,0.465,3051.0,3049.9,3.2078]
[1763563369164,7.52772,3051.0,3049.9,3.2078]
[1763563369368,3.2078,3050.8,3049.9,3.2078]
[1763563370068,3.2078,3050.8,3050.0,0.00491665]
[1763563370361,3.2078,3050.7,3050.0,0.00491665]
[1763563370756,0.465,3050.1,3050.0,0.00491665]
[1763563370951,3.2078,3050.7,3050.0,0.00491665]
[1763563371365,0.465,3051.0,3050.4,3.2078]
[1763563371562,0.465,3051.0,3050.0,3.21271665]
[1763563371965,3.2078,3050.9,3050.0,3.21271665]
[1763563372760,0.465,3050.1,3050.0,3.21271665]
[1763563373766,3.2078,3050.9,3050.0,3.21271665]
[1763563374068,3.2078,3050.5,3050.0,3.21271665]
[1763563374262,0.465,3050.1,3050.0,3.21271665]
[1763563374861,0.465,3050.1,3050.0,0.00491665]
[1763563375060,0.465,3050.1,3049.6,3.369]
[1763563375061,3.6728,3050.1,3049.6,3.369]
[1763563375572,3.6728,3050.1,3048.8,2.30426994]
[1763563375573,3.2078,3049.7,3049.0,3.2078]
[1763563376071,0.465,3049.2,3049.0,3.2078]
[1763563376269,0.00390668,3049.2,3049.0,3.21271665]
[1763563376771,0.46890668,3049.2,3049.0,3.21271665]